bitfinex-derivatives/quotes_BNBF0:USTF0_20250101
["timestamp","ask_amount","ask_price","bid_price","bid_amount"]
[1735766784134,1.62185517,707.63,707.09,1.05687943]
[1735766784328,0.88885517,707.62,707.09,1.05687943]
[1735766784534,0.88885517,707.61,707.08,1.05687943]
[1735766784828,0.88885517,707.6,707.08,1.05687943]
[1735766785030,0.88885517,707.59,707.08,1.05687943]
[1735766785229,0.88885517,707.58,707.09,1.05687943]
[1735766785433,0.88885517,707.57,707.09,1.05687943]
[1735766785633,0.88885517,707.56,707.09,1.05687943]
[1735766785834,0.88885517,707.55,707.09,1.05687943]
[1735766786035,0.88885517,707.54,707.08,1.05687943]
[1735766786229,0.88885517,707.53,707.08,1.05687943]
[1735766786435,0.88885517,707.52,707.08,1.05687943]
[1735766786635,0.88885517,707.51,707.08,1.05687943]
[1735766786935,0.88885517,707.5,707.08,1.05687943]
[1735766787136,0.733,707.63,707.08,1.05687943]
[1735766787336,0.88890706,707.62,707.08,1.05687943]
[1735766787537,0.88890706,707.61,707.08,1.05687943]
[1735766787735,0.88890706,707.6,707.08,1.05687943]
[1735766787936,0.88890706,707.59,707.08,1.05687943]
[1735766788136,0.88890706,707.58,707.09,1.05687943]
[1735766788335,0.88890706,707.57,707.09,1.05687943]
[1735766788638,0.88890706,707.56,707.09,1.05687943]
[1735766788936,0.88890706,707.55,707.09,1.05687943]
[1735766789136,0.88890706,707.55,706.88,1.05687943]
[1735766789137,0.88890706,707.54,707.1,1.05687943]
[1735766789337,0.88890706,707.53,707.1,1.05687943]
[1735766789538,0.733,707.63,707.1,1.05687943]
[1735766789539,0.88890706,707.52,707.1,1.05687943]
[1735766789739,0.88890706,707.51,707.1,1.05687943]
[1735766790038,0.733,707.63,707.1,1.05687943]
[1735766790340,0.88902619,707.62,707.11,1.05687943]
[1735766790538,0.88902619,707.61,707.11,1.05687943]
[1735766790741,0.88907334,707.6,707.11,1.05687943]
[1735766790933,0.88907334,707.59,707.11,1.05687943]
[1735766791139,0.88907334,707.58,707.1,1.05687943]
[1735766791338,0.88907334,707.57,707.1,1.05687943]
[1735766791541,0.88907334,707.56,707.1,1.05687943]
[1735766791738,0.88907334,707.55,707.1,1.05687943]
[1735766792042,0.88907334,707.54,707.08,1.05687943]
[1735766792334,0.733,707.63,707.08,1.05687943]
[1735766792335,0.88917827,707.53,707.08,1.05687943]
[1735766792541,0.88917827,707.52,707.08,1.05687943]
[1735766792840,0.88917827,707.51,707.08,1.05687943]
[1735766793139,0.88917827,707.51,706.51,2.1577955]
[1735766793140,0.88917827,707.5,707.02,1.05687943]
[1735766793343,0.88920592,707.49,707.02,1.05687943]
[1735766793535,0.88920592,707.48,707.02,1.05687943]
[1735766793735,0.88920592,707.47,707.02,1.05687943]
[1735766793938,0.88927281,707.46,707.02,1.05687943]
[1735766794137,0.733,707.63,707.02,1.05687943]
[1735766794340,0.88928033,707.62,707.02,1.05687943]
[1735766794540,0.88928033,707.61,707.02,1.05687943]
[1735766794737,0.88928033,707.6,707.02,1.05687943]
[1735766794940,0.88928033,707.59,707.02,1.05687943]
[1735766795146,0.88928033,707.58,706.96,1.05687943]
[1735766795442,0.88928033,707.57,706.96,1.05687943]
[1735766795643,0.733,707.63,706.96,1.05687943]
[1735766795644,0.88928033,707.56,706.96,1.05687943]
[1735766795846,0.88928033,707.55,706.96,1.05687943]
[1735766796038,0.88928033,707.54,706.96,1.05687943]
[1735766796344,0.88954287,707.53,706.99,1.05687943]
[1735766796544,0.88954287,707.52,706.99,1.05687943]
[1735766796744,0.88954287,707.51,706.99,1.05687943]
[1735766796940,0.88954287,707.5,706.99,1.05687943]
[1735766797144,0.88954287,707.49,706.99,1.05687943]
[1735766797345,0.88954287,707.48,706.99,1.05687943]
[1735766797546,0.88954287,707.47,706.99,1.05687943]
[1735766797748,0.733,707.63,706.99,1.05687943]
[1735766797946,0.88983617,707.62,706.99,1.05687943]
[1735766798147,0.88983617,707.61,706.99,1.05687943]
[1735766798347,0.88983617,707.6,706.99,1.05687943]
[1735766798548,0.88983617,707.59,706.97,1.05687943]
[1735766798749,0.88983617,707.58,706.97,1.05687943]
[1735766798944,0.88983617,707.57,706.97,1.05687943]
[1735766799144,0.88983617,707.56,706.97,1.05687943]
[1735766799346,1.6228788,707.55,706.97,1.05687943]
[1735766799547,1.6228788,707.55,706.2,2.1577955]
[1735766799548,0.8898788,707.54,706.96,1.05687943]
[1735766799844,0.88994874,707.53,706.96,1.05687943]
[1735766800046,0.88994874,707.52,706.96,1.05687943]
[1735766800241,0.88994874,707.51,706.96,1.05687943]
[1735766800446,0.88994874,707.5,706.96,1.05687943]
[1735766800648,0.88994874,707.49,706.96,1.05687943]
[1735766800849,0.88994874,707.48,706.96,1.05687943]
[1735766801048,0.88994874,707.47,706.96,1.05687943]
[1735766801249,0.88994874,707.46,706.96,1.05687943]
[1735766801448,0.88994874,707.45,706.96,1.05687943]
[1735766801652,0.733,707.55,706.96,1.05687943]
[1735766801844,0.89002991,707.54,706.96,1.05687943]
[1735766802047,0.89002991,707.53,706.97,1.05687943]
[1735766802247,0.89002991,707.52,706.97,1.05687943]
[1735766802450,0.733,707.55,706.97,1.05687943]
[1735766802451,0.88998753,707.51,706.97,1.05687943]
[1735766802750,0.88998753,707.5,706.97,1.05687943]
[1735766802949,0.88998753,707.49,706.97,1.05687943]
[1735766803148,0.88998753,707.48,706.97,1.05687943]
[1735766803349,0.88998753,707.47,706.92,1.05687943]
[1735766803555,0.88998753,707.46,706.92,1.05687943]
[1735766803856,0.88998753,707.45,706.92,1.05687943]
[1735766804054,0.88998753,707.44,706.92,1.05687943]
[1735766804355,0.733,707.55,706.95,1.05687943]
[1735766804356,0.88998753,707.43,706.95,1.05687943]
[1735766804649,0.88998753,707.42,706.95,1.05687943]
[1735766804852,0.733,707.55,706.95,1.05687943]
[1735766804853,0.88998753,707.41,706.95,1.05687943]
[1735766805053,0.88998753,707.4,706.95,1.05687943]
[1735766805355,0.88998753,707.39,706.95,1.05687943]
[1735766805549,0.733,707.55,706.95,1.05687943]
[1735766805754,0.89010294,707.54,706.95,1.05687943]
[1735766805954,0.89010294,707.53,706.95,1.05687943]
[1735766806154,0.89010294,707.52,706.95,1.05687943]
[1735766806357,0.89010294,707.51,706.98,1.05687943]
[1735766806551,0.89010294,707.5,706.98,1.05687943]
[1735766806754,0.89010294,707.49,706.98,1.05687943]
[1735766806950,0.89010294,707.48,706.98,1.05687943]
[1735766807154,0.89010294,707.47,706.98,1.05687943]
[1735766807459,0.89010294,707.47,706.28,2.1577955]
[1735766807460,0.89010294,707.46,707.03,1.05687943]
[1735766807655,0.89010294,707.45,707.03,1.05687943]
[1735766807858,0.89010294,707.44,707.03,1.05687943]
[1735766808057,0.733,707.55,707.03,1.05687943]
[1735766808556,0.89022596,707.54,707.03,1.05687943]
[1735766808758,0.89022596,707.53,707.04,1.05687943]
[1735766808955,0.89019324,707.52,707.04,1.05687943]
[1735766809257,0.89019324,707.51,707.04,1.05687943]
[1735766809458,0.89019324,707.5,707.04,1.05687943]
[1735766809655,0.89019324,707.49,707.04,1.05687943]
[1735766809854,0.89019324,707.48,707.04,1.05687943]
[1735766810058,0.733,707.55,707.04,1.05687943]
[1735766810261,0.89025057,707.54,707.11,1.05687943]
[1735766810561,0.89025057,707.53,707.11,1.05687943]
[1735766810759,0.89025057,707.52,707.11,1.05687943]
[1735766810959,0.89025057,707.51,707.11,1.05687943]
[1735766811258,0.89025057,707.5,707.11,1.05687943]
[1735766811453,0.89026243,707.49,707.11,1.05687943]
[1735766811655,0.733,707.55,707.13,1.05687943]
[1735766811858,0.89027348,707.54,707.13,1.05687943]
[1735766812055,0.89027348,707.53,707.13,1.05687943]
[1735766812258,0.89027348,707.52,707.13,1.05687943]
[1735766812460,0.89027348,707.51,707.13,1.05687943]
[1735766812658,0.89027348,707.5,707.13,1.05687943]
[1735766812862,0.89027348,707.49,707.16,1.05687943]
[1735766813059,0.733,707.55,707.16,1.05687943]
[1735766813260,0.89028564,707.54,707.16,1.05687943]
[1735766813456,0.89028564,707.53,707.16,1.05687943]
[1735766813660,0.89028564,707.52,707.16,1.05687943]
[1735766813861,0.89028564,707.51,707.17,1.05687943]
[1735766814058,0.89028564,707.5,707.17,1.05687943]
[1735766814254,0.89028564,707.49,707.17,1.05687943]
[1735766814457,0.89028564,707.48,707.17,1.05687943]
[1735766814661,0.89028564,707.47,707.17,1.05687943]
[1735766814863,0.89028564,707.46,707.16,1.05687943]
[1735766815060,0.89028564,707.45,707.16,1.05687943]
[1735766815258,0.89022223,707.44,707.16,1.05687943]
[1735766815458,0.733,707.55,707.16,1.05687943]
[1735766815659,0.89021344,707.54,707.16,1.05687943]
[1735766815856,0.89021344,707.53,707.18,1.05687943]
[1735766816061,0.89021344,707.52,707.18,1.05687943]
[1735766816260,0.89021344,707.51,707.18,1.05687943]
[1735766816460,0.89021344,707.5,707.18,1.05687943]
[1735766816760,0.89021344,707.49,707.18,1.05687943]
[1735766816963,0.89021344,707.48,707.19,1.05687943]
[1735766817163,0.89021344,707.47,707.19,1.05687943]
[1735766817361,0.733,707.55,707.19,1.05687943]
[1735766817555,0.89022593,707.54,707.19,1.05687943]
[1735766817760,0.89022593,707.53,707.19,1.05687943]
[1735766817957,0.89022593,707.53,706.6,2.1577955]
[1735766817958,0.89022593,707.52,707.21,1.05687943]
[1735766818161,0.89022593,707.51,707.21,1.05687943]
[1735766818458,0.733,707.55,707.21,1.05687943]
[1735766818459,0.89022593,707.5,707.21,1.05687943]
[1735766818662,0.89022593,707.49,707.21,1.05687943]
[1735766818864,0.89022593,707.48,707.21,1.05687943]
[1735766819065,0.89022593,707.47,707.21,1.05687943]
[1735766819365,0.8902099,707.46,707.22,1.05687943]
[1735766819564,0.733,707.55,707.22,1.05687943]
[1735766819765,0.89031122,707.54,707.22,1.05687943]
[1735766820066,0.89031122,707.53,707.22,1.05687943]
[1735766820267,0.89031122,707.52,707.25,1.05687943]
[1735766820566,0.89031122,707.51,707.25,1.05687943]
[1735766820759,0.89031122,707.5,707.25,1.05687943]
[1735766820963,0.89031122,707.49,707.25,1.05687943]
[1735766821266,0.89031122,707.48,707.25,1.05687943]
[1735766821466,0.89026995,707.47,707.27,1.05687943]
[1735766821662,0.733,707.55,707.27,1.05687943]
[1735766821861,0.89028868,707.54,707.27,1.05687943]
[1735766822064,0.89028868,707.53,707.27,1.05687943]
[1735766822360,0.89028868,707.52,707.26,1.05687943]
[1735766822568,0.89030859,707.51,707.26,1.05687943]
[1735766822766,0.89030859,707.5,707.26,1.05687943]
[1735766823069,0.89030859,707.49,707.26,1.05687943]
[1735766823265,0.89030859,707.48,707.26,1.05687943]
[1735766823467,0.89030859,707.47,707.25,1.05687943]
[1735766823665,0.89030859,707.46,707.25,1.05687943]
[1735766823860,0.733,707.55,707.25,1.05687943]
[1735766824064,0.89033543,707.54,707.25,1.05687943]
[1735766824264,0.89033543,707.53,707.25,1.05687943]
[1735766824561,0.89033543,707.52,707.25,1.05687943]
[1735766824762,0.89033543,707.51,707.2,1.05687943]
[1735766824961,0.89033543,707.5,707.2,1.05687943]
[1735766825164,0.89033543,707.49,707.2,1.05687943]
[1735766825367,0.89033543,707.48,707.2,1.05687943]
[1735766825667,0.733,707.55,707.2,1.05687943]
[1735766825668,0.89046794,707.47,707.2,1.05687943]
[1735766825864,0.89046794,707.46,707.2,1.05687943]
[1735766826065,0.733,707.55,707.2,1.05687943]
[1735766826263,0.89046228,707.54,707.2,1.05687943]
[1735766826464,0.89046228,707.53,707.2,1.05687943]
[1735766826661,1.47629653,707.75,707.2,1.05687943]
[1735766826662,0.89046228,707.52,707.2,1.05687943]
[1735766826862,0.89046228,707.51,707.2,1.05687943]
[1735766827064,0.89046228,707.5,707.2,1.05687943]
[1735766827262,0.89046228,707.49,707.2,1.05687943]
[1735766827467,1.62346228,707.48,707.21,1.05687943]
[1735766827664,0.89046228,707.47,707.21,1.05687943]
[1735766827870,0.89046228,707.46,707.21,1.05687943]
[1735766828070,0.89046228,707.45,707.21,1.05687943]
[1735766828270,0.733,707.48,707.21,1.05687943]
[1735766828465,0.89062146,707.47,707.21,1.05687943]
[1735766828671,0.89062146,707.47,706.61,2.1577955]
[1735766828672,0.733,707.48,707.2,1.05687943]
[1735766828870,0.8905941,707.47,707.2,1.05687943]
[1735766829170,0.733,707.48,707.2,1.05687943]
[1735766829370,0.89061064,707.47,707.2,1.05687943]
[1735766829570,0.733,707.48,707.2,1.05687943]
[1735766829773,0.89059426,707.47,707.22,1.05687943]
[1735766829972,0.733,707.48,707.22,1.05687943]
[1735766830169,0.89053925,707.47,707.22,1.05687943]
[1735766830370,0.89054301,707.46,707.22,1.05687943]
[1735766830670,0.733,707.48,707.22,1.05687943]
[1735766830871,0.89063601,707.47,707.22,1.05687943]
[1735766831174,0.733,707.48,707.22,1.05687943]
[1735766831370,0.89062082,707.47,707.22,1.05687943]
[1735766831573,0.89062082,707.46,707.22,1.05687943]
[1735766831871,0.733,707.48,707.2,1.05687943]
[1735766832070,0.89059665,707.47,707.2,1.05687943]
[1735766832272,0.89059665,707.46,707.2,1.05687943]
[1735766832572,0.89059665,707.45,707.2,1.05687943]
[1735766832772,0.89059665,707.45,706.6,2.1577955]
[1735766832773,0.733,707.48,707.22,1.05687943]
[1735766832973,0.89051776,707.47,707.22,1.05687943]
[1735766833167,0.89051776,707.46,707.22,1.05687943]
[1735766833470,0.89051776,707.45,707.22,1.05687943]
[1735766833667,0.89051776,707.44,707.22,1.05687943]
[1735766833874,0.733,707.48,707.2,1.05687943]
[1735766834070,0.8905799,707.47,707.2,1.05687943]
[1735766834267,0.8905799,707.46,707.2,1.05687943]
[1735766834466,0.733,707.48,707.2,1.05687943]
[1735766834675,0.8907245,707.47,707.24,1.05687943]
[1735766834972,0.8907245,707.46,707.24,1.05687943]
[1735766835172,0.733,707.48,707.24,1.05687943]
[1735766835173,0.89066963,707.45,707.24,1.05687943]
[1735766835369,0.89066963,707.44,707.24,1.05687943]
[1735766835570,0.89066963,707.43,707.24,1.05687943]
[1735766835771,0.89066963,707.42,707.24,1.05687943]
[1735766835965,0.733,707.48,707.24,1.05687943]
[1735766836167,0.89074864,707.47,707.22,1.05687943]
[1735766836369,0.89074864,707.46,707.22,1.05687943]
[1735766836568,0.89074864,707.45,707.22,1.05687943]
[1735766836766,0.89074864,707.44,707.22,1.05687943]
[1735766837067,0.89074864,707.43,707.22,1.05687943]
[1735766837266,0.89074864,707.42,707.22,1.05687943]
[1735766837465,0.89074864,707.41,707.22,1.05687943]
[1735766837767,0.733,707.48,707.22,1.05687943]
[1735766837972,0.89114892,707.47,707.22,1.05687943]
[1735766838172,0.89114892,707.46,707.22,1.05687943]
[1735766838470,0.89114892,707.45,707.22,1.05687943]
[1735766838672,0.89114892,707.44,707.22,1.05687943]
[1735766838870,0.89114892,707.43,707.22,1.05687943]
[1735766839068,0.89114892,707.43,707.03,1.05687943]
[1735766839069,0.89114892,707.42,707.23,1.05687943]
[1735766839270,0.89114892,707.41,707.23,1.05687943]
[1735766839464,0.89114892,707.4,707.23,1.05687943]
[1735766839668,0.89114892,707.39,707.23,1.05687943]
[1735766839866,0.89114892,707.38,707.23,1.05687943]
[1735766840066,0.733,707.48,707.23,1.05687943]
[1735766840269,0.89156294,707.47,707.23,1.05687943]
[1735766840465,0.89156294,707.46,707.18,1.05687943]
[1735766840666,0.733,707.48,707.18,1.05687943]
[1735766840873,0.89185193,707.47,707.18,1.05687943]
[1735766841167,0.89185193,707.46,707.18,1.05687943]
[1735766841372,0.733,707.48,707.18,1.05687943]
[1735766841566,0.733,707.48,707.24,1.05687943]
[1735766841567,0.89186459,707.47,707.24,1.05687943]
[1735766841771,0.89186459,707.46,707.24,1.05687943]
[1735766841972,0.733,707.48,707.24,1.05687943]
[1735766842368,0.89185075,707.47,707.24,1.05687943]
[1735766842571,0.89185075,707.46,707.24,1.05687943]
[1735766842771,0.733,707.48,707.25,1.05687943]
[1735766843875,0.733,707.48,707.23,1.05687943]
[1735766844474,1.47629653,707.86,707.23,1.05687943]
[1735766844674,0.89163865,707.85,707.23,1.05687943]
[1735766844871,0.89163865,707.84,707.2,1.05687943]
[1735766845072,0.89163865,707.83,707.2,1.05687943]
[1735766845272,0.89163865,707.82,707.2,1.05687943]
[1735766845472,0.89163865,707.81,707.2,1.05687943]
[1735766845671,1.62363865,707.8,707.2,1.05687943]
[1735766845868,0.89163865,707.79,707.2,1.05687943]
[1735766846075,0.89163865,707.78,707.2,1.05687943]
[1735766846276,0.89163865,707.77,707.21,1.05687943]
[1735766846478,0.89163865,707.76,707.21,1.05687943]
[1735766846674,0.89163865,707.75,707.21,1.05687943]
[1735766846871,0.89158279,707.74,707.21,1.05687943]
[1735766847071,0.89158279,707.73,707.28,1.05687943]
[1735766847274,0.89158279,707.72,707.28,1.05687943]
[1735766847474,0.89158279,707.71,707.28,1.05687943]
[1735766847676,0.89158279,707.7,707.28,1.05687943]
[1735766847868,0.89158279,707.69,707.28,1.05687943]
[1735766848070,0.89158279,707.68,707.3,1.05687943]
[1735766848273,0.89158279,707.67,707.3,1.05687943]
[1735766848472,0.89158279,707.66,707.3,1.05687943]
[1735766848673,0.89158279,707.65,707.3,1.05687943]
[1735766848874,0.89158279,707.64,707.27,1.05687943]
[1735766849072,0.89158279,707.63,707.27,1.05687943]
[1735766849270,0.89158279,707.62,707.27,1.05687943]
[1735766849476,0.732,707.8,707.27,1.05687943]
[1735766849677,0.89108925,707.79,707.27,1.05687943]
[1735766849871,0.732,707.8,707.27,1.05687943]
[1735766850171,0.8910843,707.79,707.27,1.05687943]
[1735766850370,0.8910843,707.78,707.27,1.05687943]
[1735766850571,0.8910843,707.77,707.27,1.05687943]
[1735766850775,0.8910843,707.76,707.27,1.05687943]
[1735766851068,0.8910843,707.75,707.27,1.05687943]
[1735766851273,0.732,707.8,707.27,1.05687943]
[1735766851274,0.8910843,707.74,707.27,1.05687943]
[1735766851474,0.8910843,707.74,706.63,2.1577955]
[1735766851475,0.8910843,707.73,707.25,1.05687943]
[1735766851674,0.8910843,707.72,707.25,1.05687943]
[1735766851874,0.8910843,707.71,707.25,1.05687943]
[1735766852177,0.8910843,707.7,707.25,1.05687943]
[1735766852379,0.8910843,707.69,707.25,1.05687943]
[1735766852578,0.8910843,707.68,707.23,1.05687943]
[1735766852779,0.8910843,707.67,707.23,1.05687943]
[1735766852976,0.89079493,707.66,707.23,1.05687943]
[1735766853180,0.89079493,707.65,707.23,1.05687943]
[1735766853477,0.89079493,707.64,707.23,1.05687943]
[1735766853782,0.89079493,707.63,707.23,1.05687943]
[1735766853979,0.89066164,707.62,707.23,1.05687943]
[1735766854180,0.732,707.8,707.23,1.05687943]
[1735766854379,0.89058517,707.79,707.27,1.05687943]
[1735766854682,0.89058517,707.78,707.27,1.05687943]
[1735766854881,0.89058517,707.77,707.27,1.05687943]
[1735766855182,0.89058517,707.76,707.27,1.05687943]
[1735766855379,0.89058517,707.75,707.27,1.05687943]
[1735766855574,0.89058517,707.74,707.26,1.05687943]
[1735766855776,0.89058517,707.73,707.26,1.05687943]
[1735766856080,0.89044723,707.72,707.26,1.05687943]
[1735766856281,0.89044723,707.71,707.26,1.05687943]
[1735766856482,0.89044723,707.7,707.26,1.05687943]
[1735766856682,0.89044723,707.69,707.26,1.05687943]
[1735766856877,0.89044723,707.68,707.26,1.05687943]
[1735766857080,0.89044723,707.67,707.26,1.05687943]
[1735766857279,0.89044723,707.66,707.17,1.05687943]
[1735766857481,0.89044723,707.65,707.17,1.05687943]
[1735766857677,0.89044723,707.64,707.17,1.05687943]
[1735766857879,0.89044723,707.63,707.17,1.05687943]
[1735766858185,0.89044723,707.62,707.17,1.05687943]
[1735766858387,0.89044723,707.61,707.15,1.05687943]
[1735766858685,0.89044723,707.6,707.15,1.05687943]
[1735766858884,0.89044723,707.59,707.15,1.05687943]
[1735766859078,1.47609302,707.77,707.15,1.05687943]
[1735766859079,0.89044723,707.58,707.15,1.05687943]
[1735766859282,0.89044723,707.57,707.15,1.05687943]
[1735766859483,0.89044723,707.56,707.17,1.05687943]
[1735766859678,0.89044723,707.55,707.17,1.05687943]
[1735766859880,1.47609302,707.77,707.17,1.05687943]
[1735766860084,0.89038306,707.76,707.17,1.05687943]
[1735766860286,0.89038306,707.75,707.17,1.05687943]
[1735766860486,0.89038306,707.74,707.17,1.05687943]
[1735766860681,0.89038306,707.73,707.17,1.05687943]
[1735766860880,0.89038306,707.72,707.17,1.05687943]
[1735766861079,0.89038306,707.71,707.17,1.05687943]
[1735766861383,0.89038306,707.7,707.17,1.05687943]
[1735766861680,0.89038306,707.69,707.17,1.05687943]
[1735766861878,0.89038306,707.68,707.17,1.05687943]
[1735766862078,0.89038306,707.67,707.17,1.05687943]
[1735766862280,0.89038306,707.66,707.17,1.05687943]
[1735766862583,0.89038306,707.65,707.17,1.05687943]
[1735766862782,0.89038306,707.64,707.17,1.05687943]
[1735766862986,0.89038306,707.64,706.58,2.1577955]
[1735766862987,0.89038306,707.63,707.15,1.05687943]
[1735766863187,0.89038306,707.62,707.15,1.05687943]
[1735766863388,0.89038306,707.61,707.15,1.05687943]
[1735766863587,0.89038306,707.6,707.15,1.05687943]
[1735766863885,0.89038306,707.59,707.15,1.05687943]
[1735766864085,0.89038306,707.58,707.15,1.05687943]
[1735766864281,1.47609302,707.77,707.14,1.05687943]
[1735766864482,0.89054138,707.57,707.14,1.05687943]
[1735766864687,0.89054138,707.56,707.14,1.05687943]
[1735766864889,0.89054138,707.55,707.14,1.05687943]
[1735766865082,0.89054138,707.54,707.14,1.05687943]
[1735766865287,0.89054138,707.53,707.15,1.05687943]
[1735766865483,1.47609302,707.77,707.15,1.05687943]
[1735766865688,0.89061436,707.76,707.15,1.05687943]
[1735766865883,0.89061436,707.75,707.15,1.05687943]
[1735766866088,0.89061436,707.74,707.15,1.05687943]
[1735766866288,0.89061436,707.73,707.15,1.05687943]
[1735766866488,0.89061436,707.72,707.15,1.05687943]
[1735766866689,0.89061436,707.71,707.15,1.05687943]
[1735766866985,0.89061436,707.7,707.15,1.05687943]
[1735766867189,0.89061436,707.69,707.15,1.05687943]
[1735766867386,0.89061436,707.68,707.15,1.05687943]
[1735766867587,0.89061436,707.67,707.15,1.05687943]
[1735766867788,0.89061436,707.66,707.15,1.05687943]
[1735766867989,0.89061436,707.65,707.15,1.05687943]
[1735766868197,0.89061436,707.64,707.15,1.05687943]
[1735766868389,0.89061436,707.63,707.15,1.05687943]
[1735766868591,0.89061436,707.63,706.51,2.1577955]
[1735766868592,0.89061436,707.62,707.17,1.05687943]
[1735766868785,1.47609302,707.77,707.17,1.05687943]
[1735766868786,0.89061436,707.61,707.17,1.05687943]
[1735766868988,0.89061436,707.6,707.17,1.05687943]
[1735766869192,1.47609302,707.77,707.17,1.05687943]
[1735766869193,0.89061436,707.59,707.17,1.05687943]
[1735766869394,0.89061436,707.58,707.15,1.05687943]
[1735766869594,0.89061436,707.57,707.15,1.05687943]
[1735766869795,0.89061436,707.56,707.15,1.05687943]
[1735766870096,0.89061436,707.55,707.15,1.05687943]
[1735766870293,0.89061436,707.54,707.15,1.05687943]
[1735766870495,0.89061436,707.53,707.15,1.05687943]
[1735766870696,0.89061436,707.52,707.15,1.05687943]
[1735766870901,0.89061436,707.51,707.15,1.05687943]
[1735766871191,0.733,707.56,707.15,1.05687943]
[1735766871397,0.89066115,707.55,707.15,1.05687943]
[1735766871599,0.89066115,707.54,707.15,1.05687943]
[1735766871797,0.89066115,707.53,707.14,1.05687943]
[1735766871992,0.89066115,707.52,707.14,1.05687943]
[1735766872292,0.89066115,707.51,707.14,1.05687943]
[1735766872499,0.8905868,707.5,707.14,1.05687943]
[1735766872700,0.8905868,707.49,707.14,1.05687943]
[1735766873001,0.8905868,707.48,707.16,1.05687943]
[1735766873197,0.733,707.56,707.16,1.05687943]
[1735766873396,0.8906104,707.55,707.16,1.05687943]
[1735766873593,0.8906104,707.54,707.16,1.05687943]
[1735766873798,0.8906104,707.53,707.16,1.05687943]
[1735766873999,0.8906104,707.52,707.16,1.05687943]
[1735766874196,0.8906104,707.51,707.14,1.05687943]
[1735766874399,0.8906104,707.5,707.14,1.05687943]
[1735766874599,0.8906104,707.49,707.14,1.05687943]
[1735766874895,0.8906104,707.48,707.14,1.05687943]
[1735766875101,0.733,707.56,707.14,1.05687943]
[1735766875301,0.733,707.56,707.16,1.05687943]
[1735766875302,0.89069014,707.55,707.16,1.05687943]
[1735766875500,0.89069014,707.54,707.16,1.05687943]
[1735766875801,0.89069014,707.53,707.16,1.05687943]
[1735766875997,0.89069014,707.52,707.16,1.05687943]
[1735766876201,0.89069014,707.51,707.16,1.05687943]
[1735766876500,0.89069014,707.5,707.15,1.05687943]
[1735766876700,0.89069014,707.49,707.15,1.05687943]
[1735766876894,0.89069014,707.48,707.15,1.05687943]
[1735766877097,0.89069014,707.47,707.15,1.05687943]
[1735766877296,0.733,707.56,707.15,1.05687943]
[1735766877498,0.89069226,707.55,707.13,1.05687943]
[1735766877706,0.89069226,707.54,707.13,1.05687943]
[1735766878000,0.89069226,707.53,707.13,1.05687943]
[1735766878205,0.89069226,707.52,707.13,1.05687943]
[1735766878404,0.733,707.56,707.14,1.05687943]
[1735766878405,0.89069226,707.51,707.14,1.05687943]
[1735766878605,0.89069226,707.5,707.14,1.05687943]
[1735766878801,0.89069226,707.49,707.14,1.05687943]
[1735766879006,0.89069226,707.48,707.14,1.05687943]
[1735766879207,0.89069226,707.47,707.14,1.05687943]
[1735766879406,0.89069226,707.46,707.14,1.05687943]
[1735766879607,0.89069226,707.45,707.15,1.05687943]
[1735766879802,0.89069226,707.44,707.15,1.05687943]
[1735766880006,0.733,707.56,707.15,1.05687943]
[1735766880007,0.89069226,707.43,707.15,1.05687943]
[1735766880202,0.89069226,707.42,707.15,1.05687943]
[1735766880407,0.733,707.56,707.15,1.05687943]
[1735766880707,0.89068659,707.55,707.13,1.05687943]
[1735766880908,0.733,707.56,707.13,1.05687943]
[1735766881108,0.89065275,707.55,707.13,1.05687943]
[1735766881407,0.89065275,707.54,707.13,1.05687943]
[1735766881606,0.89065275,707.53,707.13,1.05687943]
[1735766881807,0.89065275,707.53,706.58,2.1577955]
[1735766881808,0.89065275,707.52,707.09,1.05687943]
[1735766882000,0.89065275,707.51,707.09,1.05687943]
[1735766882205,0.89065275,707.5,707.09,1.05687943]
[1735766882402,0.89065275,707.49,707.09,1.05687943]
[1735766882604,0.89072184,707.48,707.09,1.05687943]
[1735766882809,0.89072184,707.47,707.04,1.05687943]
[1735766883009,0.89072184,707.46,707.04,1.05687943]
[1735766883209,0.89072184,707.45,707.04,1.05687943]
[1735766883409,0.89072184,707.44,707.04,1.05687943]
[1735766883710,0.89072184,707.43,707.03,1.05687943]
[1735766884008,0.733,707.56,707.03,1.05687943]
[1735766884308,0.89081972,707.55,707.03,1.05687943]
[1735766884507,0.89081972,707.54,707.03,1.05687943]
[1735766884810,0.89081972,707.53,707.08,1.05687943]
[1735766885008,0.89081972,707.52,707.08,1.05687943]
[1735766885201,0.89081972,707.51,707.08,1.05687943]
[1735766885403,0.733,707.56,707.08,1.05687943]
[1735766885404,0.8910065,707.5,707.08,1.05687943]
[1735766885606,0.8910065,707.5,706.41,2.1577955]
[1735766885607,0.8910065,707.49,707.09,1.05687943]
[1735766885803,0.8910065,707.48,707.09,1.05687943]
[1735766886002,0.733,707.56,707.09,1.05687943]
[1735766886206,0.89104156,707.55,707.09,1.05687943]
[1735766886405,0.733,707.56,707.09,1.05687943]
[1735766886406,0.89104156,707.54,707.09,1.05687943]